lending/lending_fUSD_20260204
["ID","MTS","AMOUNT","RATE_DAILY","PERIOD"]
[404506730,1770228662306,-151.0,0.00039726,120]
[404506731,1770228662317,-151.0,0.00039726,10]
[404506732,1770228662326,-151.0,0.00039726,10]
[404506733,1770228662338,-151.0,0.00039726,10]
[404506734,1770228662349,-151.0,0.00039726,10]
[404506735,1770228662359,-155.09394,0.00039726,120]
[404506736,1770228662368,-151.0,0.00039726,120]
[404506737,1770228662378,-151.0,0.00039726,120]
[404506738,1770228662387,-151.0,0.00039726,120]
[404506739,1770228662398,-151.0,0.00039726,120]
[404506740,1770228662408,-151.0,0.00039726,120]
[404506741,1770228662417,-151.0,0.00039726,120]
[404506742,1770228662431,-191.543677,0.00039726,120]
[404506743,1770228662440,-151.0,0.00039726,120]
[404506744,1770228662449,-151.0,0.00039726,120]
[404506745,1770228662459,-231.741239,0.00039726,120]
[404506746,1770228662468,-151.0,0.00039726,120]
[404506747,1770228662478,-151.0,0.00039726,120]
[404506748,1770228662487,-151.0,0.00039726,60]
[404506749,1770228662496,-151.0,0.00039726,60]
[404506750,1770228662506,-151.0,0.00039726,120]
[404506751,1770228662515,-256.5499,0.00039726,120]
[404506752,1770228662525,-162.221977,0.00039726,120]
[404506753,1770228662534,-151.0,0.00039726,120]
[404506754,1770228662543,-151.0,0.00039726,120]
[404506755,1770228662553,-151.0,0.00039726,120]
[404506756,1770228662564,-151.0,0.00039726,120]
[404506757,1770228662574,-151.0,0.00039726,120]
[404506758,1770228662584,-151.0,0.00039726,120]
[404506759,1770228662594,-151.0,0.00039726,120]
[404506760,1770228662604,-212.826954,0.00039726,120]
[404506761,1770228662613,-151.0,0.00039726,120]
[404506762,1770228662622,-169.820501,0.00039726,120]
[404506763,1770228662631,-157.473561,0.00039726,120]
[404506764,1770228662641,-151.0,0.00039726,30]
[404506765,1770228662652,-183.036719,0.00039726,30]
[404506766,1770228662661,-179.90071,0.00039726,120]
[404506767,1770228662671,-179.90071,0.00039726,120]
[404506768,1770228662684,-179.90071,0.00039726,120]
[404506769,1770228662694,-179.90071,0.00039726,120]
[404506770,1770228662704,-179.90071,0.00039726,120]
[404506771,1770228662714,-151.0,0.00039726,15]
[404506772,1770228662724,-179.90071,0.00039726,120]
[404506773,1770228662734,-242.531409,0.00039726,15]
[404506774,1770228662743,-179.90071,0.00039726,120]
[404506775,1770228662753,-179.90071,0.00039726,120]
[404506776,1770228662763,-232.135823,0.00039726,120]
[404506777,1770228662773,-279.368161,0.00039726,120]
[404506778,1770228662783,-151.0,0.00039726,120]
[404506779,1770228662792,-151.0,0.00039726,120]
[404506780,1770228662802,-151.0,0.00039726,120]
[404506781,1770228662811,-151.0,0.00039726,120]
[404506782,1770228662821,-151.0,0.00039726,120]
[404506783,1770228662830,-151.0,0.00039726,120]
[404506784,1770228662840,-186.520579,0.00039726,120]
[404506785,1770228662849,-334.271318,0.00039726,120]
[404506786,1770228662859,-334.271318,0.00039726,120]
[404506787,1770228662869,-334.271318,0.00039726,120]
[404506788,1770228662879,-334.271318,0.00039726,120]
[404506789,1770228662889,-334.271318,0.00039726,120]
[404506790,1770228662899,-334.271318,0.00039726,120]
[404506791,1770228662909,-334.271318,0.00039726,120]
[404506792,1770228662919,-334.271318,0.00039726,120]
[404506793,1770228662934,-151.0,0.00039726,120]
[404506794,1770228662944,-151.0,0.00039726,120]
[404506795,1770228662953,-158.770799,0.00039726,120]
[404506796,1770228662963,-151.0,0.00039726,120]
[404506797,1770228662973,-151.0,0.00039726,120]
[404506798,1770228662983,-151.0,0.00039726,120]
[404506799,1770228662992,-151.0,0.00039726,120]
[404506800,1770228663002,-151.0,0.00039726,120]
[404506801,1770228663011,-151.0,0.00039726,120]
[404506802,1770228663021,-151.000063,0.00039726,120]
[404506803,1770228663030,-151.0,0.00039726,120]
[404506804,1770228663040,-151.0,0.00039726,120]
[404506805,1770228663049,-151.0,0.00039726,120]
[404506806,1770228663059,-151.0,0.00039726,120]
[404506807,1770228663069,-169.78309,0.00039726,120]
[404506808,1770228663079,-151.0,0.00039726,120]
[404506809,1770228663088,-567.410147,0.00039726,120]
[404506810,1770228663097,-567.410147,0.00039726,120]
[404506811,1770228663107,-175.783809,0.00039726,120]
[404506812,1770228663116,-567.410147,0.00039726,120]
[404506813,1770228663126,-567.410147,0.00039726,120]
[404506814,1770228663135,-567.410147,0.00039726,120]
[404506815,1770228663144,-567.410147,0.00039726,120]
[404506816,1770228663153,-567.410147,0.00039726,120]
[404506817,1770228663162,-567.410147,0.00039726,120]
[404506818,1770228663171,-151.0,0.00039726,120]
[404506819,1770228663185,-151.0,0.00039726,120]
[404506820,1770228663194,-151.0,0.00039726,120]
[404506821,1770228663203,-151.0,0.00039726,120]
[404506822,1770228663212,-151.0,0.00039726,120]
[404506823,1770228663221,-195.537345,0.00039726,120]
[404506824,1770228663230,-151.0,0.00039726,120]
[404506825,1770228663239,-151.0,0.00039726,120]
[404506826,1770228663249,-151.0,0.00039726,7]
[404506827,1770228663258,-151.0,0.00039726,7]
[404506828,1770228663267,-151.0,0.00039726,7]
[404506829,1770228663277,-151.0,0.00039726,120]
[404506830,1770228663286,-151.0,0.00039726,7]
[404506831,1770228663296,-151.0,0.00039726,120]
[404506832,1770228663309,-151.0,0.00039726,120]
[404506833,1770228663318,-151.0,0.00039726,120]
[404506834,1770228663328,-151.0,0.00039726,120]
[404506835,1770228663342,-151.0,0.00039726,120]
[404506836,1770228663351,-151.0,0.00039726,120]
[404506837,1770228663361,-151.0,0.00039726,120]
[404506838,1770228663370,-180.012598,0.00039726,120]
[404506839,1770228663381,-277.362739,0.00039726,120]
[404506840,1770228663390,-151.0,0.00039726,120]
[404506841,1770228663399,-174.352991,0.00039726,120]
[404506842,1770228663409,-1792.890872,0.00039726,120]
[404506843,1770228663419,-1792.890872,0.00039726,120]
[404506844,1770228663431,-151.0,0.00039726,120]
[404506845,1770228663441,-1792.890872,0.00039726,120]
[404506846,1770228663450,-151.0,0.00039726,120]
[404506847,1770228663459,-1792.890872,0.00039726,120]
[404506848,1770228663469,-1792.890872,0.00039726,120]
[404506849,1770228663479,-1792.890872,0.00039726,120]
[404506850,1770228663488,-1792.890872,0.00039726,120]
[404506851,1770228663497,-1792.890872,0.00039726,120]
[404506852,1770228663507,-536.164689,0.00039726,15]
[404506853,1770228663516,-536.164689,0.00039726,15]
[404506854,1770228663526,-536.164689,0.00039726,15]
[404506855,1770228663535,-536.164689,0.00039726,15]
[404506856,1770228663544,-151.0,0.00039726,120]
[404506857,1770228663554,-171.156654,0.00039726,120]
[404506858,1770228663564,-151.0,0.00039726,120]
[404506859,1770228663574,-151.0,0.00039726,120]
[404506860,1770228663583,-536.164689,0.00039726,15]
[404506861,1770228663593,-536.164689,0.00039726,15]
[404506862,1770228663602,-151.0,0.00039726,120]
[404506863,1770228663612,-536.164689,0.00039726,15]
[404506864,1770228663622,-536.164689,0.00039726,15]
[404506865,1770228663631,-155.117406,0.00039726,120]
[404506866,1770228663640,-216.038187,0.00039726,120]
[404506867,1770228663650,-216.038187,0.00039726,120]
[404506868,1770228663659,-216.038187,0.00039726,120]
[404506869,1770228663669,-216.038187,0.00039726,120]
[404506870,1770228663680,-216.038187,0.00039726,120]
[404506871,1770228663690,-216.038187,0.00039726,120]
[404506872,1770228663699,-216.038187,0.00039726,120]
[404506873,1770228663709,-216.038187,0.00039726,120]
[404506874,1770228663718,-198.868593,0.00039726,120]
[404506875,1770228663728,-198.868593,0.00039726,120]
[404506876,1770228663737,-198.868593,0.00039726,120]
[404506877,1770228663747,-198.868593,0.00039726,120]
[404506878,1770228663757,-198.868593,0.00039726,120]
[404506879,1770228663767,-198.868593,0.00039726,120]
[404506880,1770228663776,-198.868593,0.00039726,120]
[404506881,1770228663786,-198.868593,0.00039726,120]
[404506882,1770228663795,-151.0,0.00039726,120]
[404506883,1770228663805,-151.0,0.00039726,120]
[404506884,1770228663815,-151.0,0.00039726,120]
[404506885,1770228663824,-151.0,0.00039726,120]
[404506886,1770228663834,-190.069099,0.00039726,120]
[404506887,1770228663843,-240.212053,0.00039726,120]
[404506888,1770228663852,-151.0,0.00039726,120]
[404506889,1770228663862,-151.0,0.00039726,120]
[404506890,1770228663871,-151.0,0.00039726,120]
[404506891,1770228663880,-151.0,0.00039726,120]
[404506892,1770228663890,-224.269381,0.00039726,120]
[404506893,1770228663900,-151.0,0.00039726,120]
[404506894,1770228663909,-151.0,0.00039726,120]
[404506895,1770228663919,-151.0,0.00039726,120]
[404506896,1770228663931,-151.0,0.00039726,120]
[404506897,1770228663941,-151.0,0.00039726,120]
[404506898,1770228663950,-151.0,0.00039726,120]
[404506899,1770228663960,-151.0,0.00039726,120]
[404506900,1770228663969,-247.529909,0.00039726,120]
[404506901,1770228663978,-151.0,0.00039726,120]
[404506902,1770228663988,-151.0,0.00039726,120]
[404506903,1770228663997,-151.0,0.00039726,120]
[404506904,1770228664006,-151.0,0.00039726,120]
[404506905,1770228664016,-151.0,0.00039726,120]
[404506906,1770228664026,-151.0,0.00039726,120]
[404506907,1770228664035,-151.0,0.00039726,120]
[404506908,1770228664044,-151.0,0.00039726,120]
[404506909,1770228664054,-151.0,0.00039726,120]
[404506910,1770228664063,-151.0,0.00039726,120]
[404506911,1770228664072,-151.0,0.00039726,120]
[404506912,1770228664210,-151.0,0.00039726,120]
[404506913,1770228664220,-151.0,0.00039726,120]
[404506914,1770228664229,-151.0,0.00039726,120]
[404506915,1770228664239,-151.0,0.00039726,120]
[404506916,1770228664248,-151.0,0.00039726,120]
[404506917,1770228664258,-151.0,0.00039726,120]
[404506918,1770228664267,-151.0,0.00039726,120]
[404506919,1770228664276,-151.0,0.00039726,120]
[404506920,1770228664285,-151.0,0.00039726,120]
[404506921,1770228664294,-265.910888,0.00039726,120]
[404506922,1770228664304,-182.614363,0.00039726,120]
[404506923,1770228664313,-151.0,0.00039726,120]
[404506924,1770228664322,-151.0,0.00039726,120]
[404506925,1770228664331,-151.0,0.00039726,120]
[404506926,1770228664341,-151.0,0.00039726,120]
[404506927,1770228664353,-151.0,0.00039726,120]
[404506928,1770228664362,-156.937076,0.00039726,120]
[404506929,1770228664372,-438.804324,0.00039726,120]
[404506930,1770228664381,-438.804324,0.00039726,120]
[404506931,1770228664391,-438.804324,0.00039726,120]
[404506932,1770228664400,-438.804324,0.00039726,120]
[404506933,1770228664409,-438.804324,0.00039726,120]
[404506934,1770228664419,-438.804324,0.00039726,120]
[404506935,1770228664433,-438.804324,0.00039726,120]
[404506936,1770228664442,-438.804324,0.00039726,120]
[404506937,1770228664452,-151.0,0.00039726,120]
[404506938,1770228664460,-151.0,0.00039726,120]
[404506939,1770228664470,-151.0,0.00039726,120]
[404506940,1770228664479,-151.0,0.00039726,120]
[404506941,1770228664488,-151.0,0.00039726,120]
[404506942,1770228664498,-151.0,0.00039726,120]
[404506943,1770228664506,-151.0,0.00039726,120]
[404506944,1770228664516,-151.0,0.00039726,120]
[404506945,1770228664525,-151.0,0.00039726,120]
[404506946,1770228664534,-198.061046,0.00039726,120]
[404506947,1770228664543,-151.0,0.00039726,120]
[404506948,1770228664552,-151.0,0.00039726,120]
[404506949,1770228664561,-151.0,0.00039726,120]
[404506950,1770228664570,-151.0,0.00039726,120]
[404506951,1770228664580,-196.389493,0.00039726,120]
[404506952,1770228664589,-151.0,0.00039726,120]
[404506953,1770228664598,-167.153839,0.00039726,120]
[404506954,1770228664607,-151.0,0.00039726,120]
[404506955,1770228664616,-151.0,0.00039726,120]
[404506956,1770228664625,-151.0,0.00039726,120]
[404506957,1770228664635,-151.0,0.00039726,120]
[404506958,1770228664645,-151.0,0.00039726,120]
[404506959,1770228664654,-151.0,0.00039726,120]
[404506960,1770228664664,-201.912713,0.00039726,120]
[404506961,1770228664673,-282.938453,0.00039726,120]
[404506962,1770228664685,-151.0,0.00039726,120]
[404506963,1770228664694,-151.0,0.00039726,120]
[404506964,1770228664704,-487.583673,0.00039726,120]
[404506965,1770228664713,-487.583673,0.00039726,120]
[404506966,1770228664723,-487.583673,0.00039726,120]
[404506967,1770228664732,-487.583673,0.00039726,120]
[404506968,1770228664741,-487.583673,0.00039726,120]
[404506969,1770228664751,-487.583673,0.00039726,120]
[404506970,1770228664760,-487.583673,0.00039726,120]
[404506971,1770228664770,-487.583673,0.00039726,120]
[404506972,1770228664780,-850.258,0.00039726,120]
[404506973,1770228664789,-850.258,0.00039726,120]
[404506974,1770228664799,-850.258,0.00039726,120]
[404506975,1770228664809,-850.258,0.00039726,120]
[404506976,1770228664818,-850.258,0.00039726,120]
[404506977,1770228664827,-850.258,0.00039726,120]
[404506978,1770228664837,-850.258,0.00039726,120]
[404506979,1770228664846,-850.258,0.00039726,120]
[404506980,1770228664855,-151.0,0.00039726,120]
[404506981,1770228664864,-151.0,0.00039726,120]
[404506982,1770228664874,-189.047597,0.00039726,120]
[404506983,1770228664884,-151.0,0.00039726,120]
[404506984,1770228664893,-151.0,0.00039726,120]
[404506985,1770228664903,-283.764838,0.00039726,120]
[404506986,1770228664912,-151.0,0.00039726,120]
[404506987,1770228664922,-269.368321,0.00039726,120]
[404506988,1770228664934,-156.90359,0.00039726,120]
[404506989,1770228664943,-151.0,0.00039726,120]
[404506990,1770228664953,-151.0,0.00039726,120]
[404506991,1770228664962,-151.0,0.00039726,120]
[404506992,1770228664971,-154.370002,0.00039726,120]
[404506993,1770228664981,-151.0,0.00039726,120]
[404506994,1770228664990,-151.0,0.00039726,120]
[404506995,1770228665000,-151.0,0.00039726,120]
[404506996,1770228665009,-151.0,0.00039726,120]
[404506997,1770228665018,-4150.624145,0.00039726,14]
[404506998,1770228665027,-151.0,0.00039726,120]
[404506999,1770228665036,-4150.624145,0.00039726,14]
[404507000,1770228665046,-207.37375,0.00039726,120]
[404507001,1770228665055,-151.0,0.00039726,120]
[404507002,1770228665064,-4150.624145,0.00039726,14]
[404507003,1770228665074,-151.0,0.00039726,120]
[404507004,1770228665083,-4150.624145,0.00039726,14]
[404507005,1770228665092,-4150.624145,0.00039726,14]
[404507006,1770228665101,-151.0,0.00039726,120]
[404507007,1770228665110,-185.52676,0.00039726,120]
[404507008,1770228665119,-4150.624145,0.00039726,14]
[404507009,1770228665128,-193.31779,0.00039726,120]
[404507010,1770228665137,-151.0,0.00039726,120]
[404507011,1770228665147,-185.52676,0.00039726,120]
[404507012,1770228665156,-193.31779,0.00039726,120]
[404507013,1770228665165,-4150.624145,0.00039726,14]
[404507014,1770228665174,-151.0,0.00039726,120]
[404507015,1770228665188,-185.52676,0.00039726,120]
[404507016,1770228665198,-4150.624145,0.00039726,14]
[404507017,1770228665207,-264.218956,0.00039726,120]
[404507018,1770228665216,-185.52676,0.00039726,120]
[404507019,1770228665226,-185.52676,0.00039726,120]
[404507020,1770228665235,-185.52676,0.00039726,120]
[404507021,1770228665244,-193.31779,0.00039726,120]
[404507022,1770228665253,-185.52676,0.00039726,120]
[404507023,1770228665263,-185.52676,0.00039726,120]
[404507024,1770228665272,-193.31779,0.00039726,120]
[404507025,1770228665281,-151.0,0.00039726,120]
[404507026,1770228665290,-233.202911,0.00039726,120]
[404507027,1770228665300,-151.0,0.00039726,120]
[404507028,1770228665309,-193.31779,0.00039726,120]
[404507029,1770228665318,-193.31779,0.00039726,120]
[404507030,1770228665327,-193.31779,0.00039726,120]
[404507031,1770228665340,-193.31779,0.00039726,120]
[404507032,1770228665350,-157.649517,0.00039726,120]
[404507033,1770228665360,-326.041101,0.00039726,90]
[404507034,1770228665370,-1618.719763,0.00039726,120]
[404507035,1770228665381,-326.041101,0.00039726,90]
[404507036,1770228665391,-1618.719763,0.00039726,120]
[404507037,1770228665400,-326.041101,0.00039726,90]
[404507038,1770228665410,-1618.719763,0.00039726,120]
[404507039,1770228665419,-326.041101,0.00039726,90]
[404507040,1770228665433,-1618.719763,0.00039726,120]
[404507041,1770228665442,-1618.719763,0.00039726,120]
[404507042,1770228665451,-326.041101,0.00039726,90]
[404507043,1770228665460,-1618.719763,0.00039726,120]
[404507044,1770228665470,-326.041101,0.00039726,90]
[404507045,1770228665479,-326.041101,0.00039726,90]
[404507046,1770228665489,-1618.719763,0.00039726,120]
[404507047,1770228665498,-326.041101,0.00039726,90]
[404507048,1770228665507,-1618.719763,0.00039726,120]
[404507049,1770228665516,-151.0,0.00039726,120]
[404507050,1770228665525,-151.0,0.00039726,120]
[404507051,1770228665534,-151.0,0.00039726,120]
[404507052,1770228665543,-232.990459,0.00039726,120]
[404507053,1770228665552,-151.0,0.00039726,120]
[404507054,1770228665561,-151.0,0.00039726,120]
[404507055,1770228665570,-151.0,0.00039726,120]
[404507056,1770228665579,-151.0,0.00039726,120]
[404507057,1770228665589,-151.0,0.00039726,120]
[404507058,1770228665599,-151.0,0.00039726,120]
[404507059,1770228665609,-151.0,0.00039726,120]
[404507060,1770228665619,-151.0,0.00039726,120]
[404507061,1770228665628,-151.0,0.00039726,120]
[404507062,1770228665637,-2287.520859,0.00039726,120]
[404507063,1770228665647,-151.0,0.00039726,120]
[404507064,1770228665656,-2287.520859,0.00039726,120]
[404507065,1770228665665,-151.0,0.00039726,120]
[404507066,1770228665674,-151.0,0.00039726,120]
[404507067,1770228665688,-2287.520859,0.00039726,120]
[404507068,1770228665697,-156.803548,0.00039726,120]
[404507069,1770228665706,-2287.520859,0.00039726,120]
[404507070,1770228665715,-151.0,0.00039726,120]
[404507071,1770228665724,-2287.520859,0.00039726,120]
[404507072,1770228665734,-151.0,0.00039726,120]
[404507073,1770228665743,-268.982077,0.00039726,120]
[404507074,1770228665752,-2287.520859,0.00039726,120]
[404507075,1770228665761,-151.0,0.00039726,120]
[404507076,1770228665770,-2287.520859,0.00039726,120]
[404507077,1770228665779,-151.0,0.00039726,120]
[404507078,1770228665789,-2287.520859,0.00039726,120]
[404507079,1770228665798,-151.0,0.00039726,120]
[404507080,1770228665806,-176.708125,0.00039726,120]
[404507081,1770228665815,-151.0,0.00039726,120]
[404507082,1770228665824,-151.0,0.00039726,120]
[404507083,1770228665833,-1000.0,0.00039744,2]
[404507084,1770228665842,-1006.6459618,0.000398,30]
[404507085,1770228665851,-1024.0263516,0.000399,60]
[404507086,1770228665864,-533.0,0.00039926,22]
[404507087,1770228665874,-80927.87573015,0.0003998,2]
[404507088,1770228665884,-389.70026197,0.0004,2]
[404507089,1770228665893,-1557.38366422,0.0004,2]
[404507090,1770228665903,-218.40883287,0.0004,2]
[404507091,1770228665914,-453.03905008,0.0004,2]
[404507092,1770228665923,-314.27156421,0.0004,2]
[404507093,1770228665937,-161.37231858,0.0004,2]
[404507094,1770228665947,-10667.11731022,0.0004,2]
[404507095,1770228665956,-5012.10948578,0.0004,2]
[404507096,1770228665965,-511.7915846,0.0004,7]
[404507097,1770228665975,-100000.0,0.0004,7]
[404507098,1770228665984,-200000.0,0.0004,7]
[404507099,1770228665994,-5000.0,0.0004,3]
[404507100,1770228666003,-250.0,0.0004,45]
[404507101,1770228666012,-250.0,0.0004,45]
[404507102,1770228666021,-250.0,0.0004,45]
[404507103,1770228666030,-250.0,0.0004,45]
[404507104,1770228666039,-250.0,0.0004,45]
[404507105,1770228666051,-1000.0,0.0004,30]
[404507106,1770228666061,-486.38795039,0.0004,120]
[404507107,1770228666071,-160.70255249,0.0004,30]
[404507108,1770228666080,-12392.08544409,0.0004,120]
[404507109,1770228666089,-217.93577612,0.0004,30]
[404507110,1770228666098,-506.74158725,0.0004,120]
[404507111,1770228666107,-200.0,0.0004,120]
[404507112,1770228666116,-300.0,0.0004,120]
[404507113,1770228666125,-6832.84605572,0.0004,14]
[404507114,1770228666135,-1050.02333731,0.0004,14]
[404507115,1770228666144,-160.0,0.0004,120]
[404507116,1770228666153,-321.3,0.0004,120]
[404507117,1770228666319,-807.00431006,0.0004,3]
[404507118,1770228666339,-157.20456835,0.0004,120]
[404507119,1770228666350,-159.31492105,0.0004,120]
[404507120,1770228666359,-300.0,0.0004,30]
[404507121,1770228666369,-157.96,0.0004,30]
[404507122,1770228666379,-227.36487518,0.0004,120]
[404507123,1770228666393,-393.0,0.0004,120]
[404507124,1770228666403,-17390.93840717,0.0004,14]
[404507125,1770228666414,-6497.41912829,0.0004,7]
[404507126,1770228666427,-160.0,0.0004,10]
[404507127,1770228666444,-160.0,0.0004,120]
[404507128,1770228666454,-160.0,0.0004,10]
[404507129,1770228666466,-8091.0,0.0004,30]
[404507130,1770228666476,-1769.71629372,0.0004,120]
[404507131,1770228666487,-200.78428855,0.0004,2]
[404507132,1770228666499,-2750.0,0.0004,5]
[404507133,1770228666511,-365.81781889,0.0004,30]
[404507134,1770228666523,-575.0,0.0004,120]
[404507135,1770228666534,-151.0,0.0004,120]
[404507136,1770228666544,-160.0,0.0004,30]
[404507137,1770228666555,-160.0,0.0004,30]
[404507138,1770228666565,-153.0,0.0004,120]
[404507139,1770228666576,-150.0,0.0004,60]
[404507140,1770228666587,-5000.0,0.0004,5]
[404507141,1770228666601,-240.399,0.0004,30]
[404507142,1770228666616,-558.22,0.0004,120]
[404507143,1770228666627,-1298.23,0.0004,120]
[404507144,1770228666638,-443.06,0.0004,120]
[404507145,1770228666648,-682.53,0.0004,120]
[404507146,1770228666659,-257.91977,0.0004,120]
[404507147,1770228666669,-611.68,0.0004,120]
[404507148,1770228666687,-320.14,0.0004,120]
[404507149,1770228666703,-253.0,0.0004,30]
[404507150,1770228666713,-647.0,0.0004,120]
[404507151,1770228666724,-340.35,0.0004,120]
[404507152,1770228666735,-170.15,0.0004,120]
[404507153,1770228666746,-1000.0,0.0004,21]
[404507154,1770228666757,-1372.04,0.00040111,120]
[404507155,1770228666768,-1656.78,0.0004028,2]
[404507156,1770228666779,-1335.0,0.00040287,2]
[404507157,1770228666789,-1410.0,0.00040287,2]
[404507158,1770228666800,-1271.0,0.00040287,2]
[404507159,1770228666818,-1205.0,0.00040287,2]
[404507160,1770228666829,-917.0,0.00040287,2]
[404507161,1770228666840,-3253.0,0.00040287,2]
[404507162,1770228666851,-6580.0,0.00040287,2]
[404507163,1770228666861,-300.040519,0.0004041,100]
[404507164,1770228666872,-250.0,0.000405,45]
[404507165,1770228666882,-250.0,0.000405,45]
[404507166,1770228666892,-250.0,0.000405,45]
[404507167,1770228666903,-250.0,0.000405,45]
[404507168,1770228666914,-250.0,0.000405,45]
[404507169,1770228666925,-533.0,0.00040552,23]
[404507170,1770228666936,-151.0,0.000406,120]
[404507171,1770228666946,-196.475,0.00040612,58]
[404507172,1770228666955,-2607.854,0.00040651,58]
[404507173,1770228666964,-1000.0,0.00040744,2]
[404507174,1770228666975,-155.38255376,0.000408,60]
[404507175,1770228666986,-1432.0,0.000408,120]
[404507176,1770228666996,-153.0,0.000408,120]
[404507177,1770228667006,-435.0,0.00040829,59]
[404507178,1770228667019,-425.78454103,0.00040878,120]
[404507179,1770228667034,-253.43168671,0.000409,120]
[404507180,1770228667044,-435.0,0.00040999,30]
[404507181,1770228667054,-435.0,0.00040999,45]
[404507182,1770228667064,-267.46074303,0.00040999,30]
[404507183,1770228667074,-986.69939045,0.00041,2]
[404507184,1770228667083,-500.0,0.00041,30]
[404507185,1770228667093,-1217.01874872,0.00041,30]
[404507186,1770228667102,-250.0,0.00041,45]
[404507187,1770228667112,-250.0,0.00041,45]
[404507188,1770228667123,-250.0,0.00041,45]
[404507189,1770228667133,-250.0,0.00041,45]
[404507190,1770228667143,-154.17,0.00041,120]
[404507191,1770228667153,-151.60291421,0.00041,120]
[404507192,1770228667162,-182.81350716,0.00041,35]
[404507193,1770228667171,-923.76750614,0.00041,120]
[404507194,1770228667191,-5223.5,0.00041,14]
[404507195,1770228667200,-330.22,0.00041,120]
[404507196,1770228667210,-300.0,0.00041,45]
[404507197,1770228667219,-605.42357735,0.00041,30]
[404507198,1770228667229,-823.0,0.00041,120]
[404507199,1770228667239,-486258.77726658,0.00041,30]
[404507200,1770228667249,-271.15,0.00041,3]
[404507201,1770228667259,-4079.79,0.00041,30]
[404507202,1770228667268,-356.47,0.00041,30]
[404507203,1770228667277,-1067.9,0.00041,14]
[404507204,1770228667285,-9783.42,0.00041,30]
[404507205,1770228667293,-246.08143178,0.00041,120]
[404507206,1770228667302,-276.0,0.00041,2]
[404507207,1770228667311,-499.0,0.00041,120]
[404507208,1770228667319,-151.0,0.00041,120]
[404507209,1770228667329,-189.769576,0.00041,120]
[404507210,1770228667342,-151.0,0.00041,60]
[404507211,1770228667352,-151.0,0.00041,120]
[404507212,1770228667361,-151.0,0.00041,120]
[404507213,1770228667371,-151.0,0.00041,120]
[404507214,1770228667381,-179.90071,0.00041,120]
[404507215,1770228667390,-179.90071,0.00041,120]
[404507216,1770228667400,-900.0,0.00041,2]
[404507217,1770228667411,-179.90071,0.00041,120]
[404507218,1770228667421,-179.90071,0.00041,120]
[404507219,1770228667431,-151.0,0.00041,120]
[404507220,1770228667440,-151.0,0.00041,120]
[404507221,1770228667450,-151.0,0.00041,120]
[404507222,1770228667460,-334.271318,0.00041,120]
[404507223,1770228667469,-334.271318,0.00041,120]
[404507224,1770228667479,-334.271318,0.00041,120]
[404507225,1770228667488,-334.271318,0.00041,120]
[404507226,1770228667497,-151.0,0.00041,120]
[404507227,1770228667507,-190.224564,0.00041,120]
[404507228,1770228667516,-151.0,0.00041,120]
[404507229,1770228667526,-151.0,0.00041,120]